bitfinex/quotes_BTCUSD_20251214
["timestamp","ask_amount","ask_price","bid_price","bid_amount"]
[1765734829953,0.02184669,88836.0,88833.0,0.01125707]
[1765734830163,0.001,88834.0,88833.0,0.01125707]
[1765734830311,0.002,88834.0,88833.0,0.01125707]
[1765734830516,0.01059,88836.0,88833.0,0.01125707]
[1765734830828,0.002,88834.0,88833.0,0.01125707]
[1765734831261,0.001,88834.0,88833.0,0.01125707]
[1765734831459,0.01225695,88834.0,88830.0,0.0178]
[1765734831660,0.01225695,88834.0,88831.0,0.01125733]
[1765734832229,0.01125695,88834.0,88831.0,0.01125733]
[1765734832601,0.01225695,88834.0,88831.0,0.01125733]
[1765734832791,0.01125695,88834.0,88831.0,0.01125733]
[1765734833146,0.01225695,88834.0,88831.0,0.01125733]
[1765734833342,0.01125707,88833.0,88830.0,0.02905745]
[1765734834134,0.001,88834.0,88831.0,0.01125733]
[1765734834337,0.01125581,88843.0,88837.0,0.23638647]
[1765734834547,0.00348764,88844.0,88841.0,0.01125606]
[1765734834767,0.00348764,88844.0,88842.0,0.24291666]
[1765734836297,0.00948764,88844.0,88842.0,0.24291666]
[1765734839978,0.00948764,88844.0,88842.0,0.0178]
[1765734840179,0.02669,88843.0,88842.0,0.0178]
[1765734840812,0.05052,88843.0,88842.0,0.0178]
[1765734841945,0.05352,88843.0,88842.0,0.0178]
[1765734842120,0.03269,88843.0,88842.0,0.0178]
[1765734843123,0.006,88843.0,88842.0,0.24291875]
[1765734843364,0.006,88843.0,88842.0,0.0178]
[1765734843568,0.01646,88843.0,88842.0,0.0178]
[1765734844348,0.03269,88843.0,88842.0,0.0178]
[1765734844706,0.05652,88843.0,88842.0,0.0178]
[1765734845038,0.05052,88843.0,88842.0,0.0178]
[1765734845547,0.05252,88843.0,88842.0,0.0178]
[1765734846358,0.01125669,88836.0,88831.0,0.2476568]
[1765734846617,0.02682,88832.0,88831.0,0.22514662]
[1765734846819,0.02682,88832.0,88831.0,0.24294662]
[1765734847048,0.01059,88832.0,88831.0,0.24294662]
[1765734847921,0.01059,88832.0,88831.0,0.24394662]
[1765734848128,0.02383,88839.0,88836.0,0.23638874]
[1765734848337,0.03508631,88839.0,88836.0,0.01125669]
[1765734848767,0.02383,88839.0,88836.0,0.01125669]
[1765734848995,0.01046,88843.0,88836.0,0.01125669]
[1765734848996,0.00187477,88844.0,88840.0,0.22512381]
[1765734849198,0.00187477,88844.0,88843.0,0.35332621]
[1765734849404,0.00187477,88844.0,88843.0,1.51007621]
[1765734849606,0.00187477,88844.0,88843.0,1.53422621]
[1765734850033,0.00187477,88844.0,88843.0,1.53873092]
[1765734850267,0.00187477,88844.0,88843.0,1.32210192]
[1765734850516,0.00187477,88844.0,88843.0,1.25041192]
[1765734850741,0.00187477,88844.0,88843.0,1.13801192]
[1765734851155,0.00187477,88844.0,88843.0,1.14001192]
[1765734851470,0.00187477,88844.0,88843.0,1.14201192]
[1765734852678,0.00187477,88844.0,88843.0,1.19821692]
[1765734853049,0.00187477,88844.0,88843.0,1.14201192]
[1765734853355,0.00187477,88844.0,88843.0,1.25441192]
[1765734856840,0.00187477,88844.0,88843.0,0.76044192]
[1765734860278,0.00187477,88844.0,88843.0,0.68946592]
[1765734864045,0.00187477,88844.0,88843.0,1.14258431]
[1765734864301,0.0004,88862.0,88854.0,2.67820673]
[1765734864507,0.0002,88895.0,88873.0,0.22504022]
[1765734864508,0.01125036,88886.0,88873.0,0.22504022]
[1765734864710,0.01046,88885.0,88873.0,0.76332922]
[1765734864913,0.0002,88895.0,88873.0,0.89820559]
[1765734865122,0.00131674,88874.0,88873.0,0.98310211]
[1765734865327,0.0002,88895.0,88880.0,0.6281225]
[1765734865528,0.0002,88895.0,88883.0,2.45311839]
[1765734865669,0.0002,88895.0,88883.0,2.46892839]
[1765734865876,0.0002,88895.0,88883.0,2.49307839]
[1765734866076,0.00050549,88884.0,88883.0,2.49307839]
[1765734866304,0.00050549,88884.0,88883.0,2.52684394]
[1765734867102,0.00050549,88884.0,88883.0,2.53084394]
[1765734868515,0.00050549,88884.0,88883.0,2.55264394]
[1765734873753,1e-08,88884.0,88883.0,2.55264394]
[1765734874380,1e-08,88884.0,88883.0,2.55260394]
[1765734874748,1e-08,88884.0,88883.0,2.53484394]
[1765734874925,1e-08,88884.0,88883.0,2.55260394]
[1765734875668,1e-08,88884.0,88883.0,2.53484394]
[1765734875930,1e-08,88884.0,88883.0,2.55260394]
[1765734884385,0.0003862,88884.0,88883.0,2.70100394]
[1765734886956,0.0003862,88884.0,88883.0,2.64480894]
[1765734887489,1e-08,88884.0,88883.0,2.64480894]
[1765734888111,0.05,88900.0,88883.0,2.64480894]
[1765734888112,0.05,88900.0,88899.0,0.16241839]
[1765734888295,0.05,88900.0,88899.0,2.43594554]
[1765734888492,0.0002,88914.0,88906.0,2.33118008]
[1765734888698,0.0002,88914.0,88906.0,2.40242508]
[1765734888932,0.05070241,88907.0,88906.0,2.71578508]
[1765734889340,0.05070241,88907.0,88906.0,2.7495428]
[1765734890353,0.05070241,88907.0,88906.0,2.7673028]
[1765734890553,0.05070241,88907.0,88906.0,2.7683028]
[1765734891645,0.05070241,88907.0,88906.0,2.9167028]
[1765734891857,0.05070241,88907.0,88906.0,2.9177028]
[1765734892058,0.0002,88914.0,88913.0,0.67805737]
[1765734892323,0.0002,88914.0,88913.0,2.70482737]
[1765734892532,0.0002,88914.0,88913.0,2.72748737]
[1765734894302,0.0002,88914.0,88913.0,2.72948737]
[1765734895564,0.0002,88914.0,88913.0,2.748968]
[1765734895907,0.0002,88914.0,88913.0,2.766728]
[1765734897984,0.0002,88914.0,88913.0,0.44623698]
[1765734898185,0.0002,88914.0,88913.0,0.40408698]
[1765734898524,0.0002,88914.0,88913.0,0.38964059]
[1765734898887,0.0002,88914.0,88913.0,0.41063059]
[1765734899350,0.0002,88914.0,88913.0,0.41263059]
[1765734900234,0.0002,88914.0,88913.0,0.41063059]
[1765734900471,0.0002,88914.0,88913.0,0.52403059]
[1765734901214,0.0002,88914.0,88913.0,0.41163059]
[1765734902240,0.0002,88914.0,88913.0,0.26292259]
[1765734902442,0.0002,88914.0,88913.0,0.40183959]
[1765734903136,0.0002,88914.0,88913.0,0.41753959]
[1765734903340,0.0002,88914.0,88913.0,0.44152959]
[1765734904205,0.0002,88914.0,88913.0,0.23615259]
[1765734904386,0.0002,88914.0,88913.0,0.02076]
[1765734904565,0.0002,88914.0,88913.0,0.06045]
[1765734904765,0.0002,88914.0,88913.0,0.07730677]
[1765734905147,0.0002,88914.0,88913.0,0.05845]
[1765734905347,0.0002,88914.0,88913.0,0.03446]
[1765734905793,0.01591,88914.0,88912.0,0.2249396]
[1765734906053,0.01124707,88912.0,88908.0,0.23619875]
[1765734906361,0.01124707,88912.0,88909.0,0.02900745]
[1765734906362,0.00161287,88912.0,88909.0,0.02900745]
[1765734906766,0.0244,88910.0,88909.0,0.02900745]
[1765734907113,0.0244,88910.0,88909.0,0.01776]
[1765734907114,0.02601287,88910.0,88909.0,0.01776]
[1765734907250,0.04886287,88910.0,88909.0,0.01776]
[1765734907857,0.04986287,88910.0,88909.0,0.01776]
[1765734909049,0.27480944,88910.0,88909.0,0.01776]
[1765734909251,0.38720944,88910.0,88909.0,0.01776]
[1765734910813,0.27480944,88910.0,88909.0,0.01776]
[1765734912216,0.38720944,88910.0,88909.0,0.01776]
[1765734914276,0.38720944,88910.0,88890.0,0.01124985]
[1765734914277,0.22498218,88896.0,88890.0,0.01124985]
[1765734914486,0.2249491,88909.0,88888.0,0.27002116]
[1765734914487,0.0251,88892.0,88888.0,0.23625041]
[1765734914712,0.01571,88891.0,88889.0,0.01776]
[1765734914881,0.24784515,88891.0,88889.0,0.01776]
[1765734915095,0.01571,88890.0,88889.0,0.01776]
[1765734916039,0.03856,88890.0,88889.0,0.01776]
[1765734917585,0.03956,88890.0,88889.0,0.01776]
[1765734917788,0.03956,88890.0,88880.0,0.22502007]
[1765734917789,0.01125023,88887.0,88880.0,0.22502007]
[1765734918012,0.01125023,88887.0,88881.0,0.01776]
[1765734918263,0.01125023,88887.0,88882.0,0.22501743]
[1765734918484,0.001,88890.0,88888.0,0.22500039]
[1765734919417,0.01571,88889.0,88886.0,0.01125036]
[1765734919714,0.0244,88887.0,88885.0,0.23625837]
[1765734919892,0.00869,88887.0,88885.0,0.23625837]
[1765734920681,0.001,88890.0,88889.0,0.22499971]
[1765734920879,0.001,88890.0,88889.0,0.24069971]
[1765734921068,0.001,88890.0,88889.0,0.26468971]
[1765734921581,0.01124846,88901.0,88898.0,0.23622563]
[1765734921780,0.00939,88902.0,88899.0,0.02900872]
[1765734922179,0.00939,88902.0,88899.0,0.2539808]
[1765734923237,0.01039,88902.0,88899.0,0.02900872]
[1765734924048,0.01239,88902.0,88899.0,0.02900872]
[1765734924412,0.01239,88902.0,88900.0,0.2249697]
[1765734925314,0.01139,88902.0,88900.0,0.2249697]
[1765734925666,0.01239,88902.0,88900.0,0.2249697]
[1765734925871,0.01239,88902.0,88899.0,0.25398089]
[1765734926073,0.01039,88902.0,88899.0,0.25398089]
[1765734926226,0.01039,88902.0,88901.0,0.22496934]
[1765734926429,0.01239,88902.0,88901.0,0.22496934]
[1765734926827,0.01039,88902.0,88901.0,0.22496934]
[1765734927234,0.01239,88902.0,88901.0,0.22496934]
[1765734927653,0.01039,88902.0,88901.0,0.22496934]
[1765734927853,0.00939,88902.0,88901.0,0.22496934]
[1765734928030,0.01139,88902.0,88901.0,0.22496934]
[1765734928250,0.01239,88902.0,88901.0,0.22496934]
[1765734928490,0.002,88902.0,88901.0,0.22496934]
[1765734928650,0.003,88902.0,88901.0,0.22496934]
[1765734938257,0.003,88902.0,88901.0,0.41384934]
[1765734938432,0.003,88902.0,88901.0,0.52624934]
[1765734938850,0.003,88902.0,88901.0,0.81694934]
[1765734939257,0.001,88902.0,88901.0,0.81694934]
[1765734939449,0.0002,88914.0,88913.0,0.22493898]
[1765734939648,0.0002,88914.0,88913.0,0.25929898]
[1765734939852,0.0002,88914.0,88913.0,0.39608898]
[1765734940187,0.0002,88914.0,88913.0,0.28368898]
[1765734941500,0.0002,88914.0,88913.0,0.25929898]
[1765734941687,0.0002,88914.0,88913.0,0.68678898]
[1765734941841,0.0002,88914.0,88913.0,1.31374398]
[1765734941842,0.0012,88914.0,88913.0,1.31374398]
[1765734942679,0.0012,88914.0,88913.0,1.20134398]
[1765734942892,0.0012,88914.0,88913.0,1.31374398]
[1765734943090,0.0002,88914.0,88913.0,1.31374398]
[1765734943319,0.0002,88914.0,88913.0,1.20234398]
[1765734943523,0.0002,88914.0,88913.0,1.20334398]
[1765734943749,0.0002,88914.0,88913.0,1.31574398]
[1765734945052,0.0002,88914.0,88913.0,1.11430598]
[1765734945344,0.0002,88914.0,88913.0,0.98230598]
[1765734945508,0.0002,88914.0,88913.0,0.96821898]
[1765734947549,0.0002,88914.0,88913.0,0.47564898]
[1765734947744,0.0002,88914.0,88913.0,0.48339898]
[1765734948772,0.0002,88914.0,88913.0,0.25846]
[1765734948940,0.0002,88914.0,88913.0,0.45513898]
[1765734949148,0.0002,88914.0,88913.0,0.80458898]
[1765734949348,0.0002,88914.0,88913.0,0.91698898]
[1765734949759,0.0002,88914.0,88913.0,0.91498898]
[1765734950157,0.0012,88914.0,88913.0,0.80258898]
[1765734950865,0.0012,88914.0,88913.0,0.85879398]
[1765734951086,0.0022,88914.0,88913.0,0.85879398]
[1765734951419,0.0002,88914.0,88913.0,0.80258898]
[1765734951584,0.0002,88914.0,88913.0,0.80358898]
[1765734952369,0.0002,88914.0,88913.0,0.91698898]
[1765734952578,0.0002,88914.0,88913.0,0.92520259]
[1765734955486,0.0002,88914.0,88913.0,0.94170009]
[1765734955896,0.0002,88914.0,88913.0,0.84108009]
[1765734956111,0.0002,88914.0,88913.0,0.95348009]
[1765734964350,0.0002,88914.0,88913.0,0.80682259]
[1765734964482,0.0002,88914.0,88913.0,0.81636898]
[1765734965160,0.0002,88914.0,88913.0,0.92876898]
[1765734969210,0.0002,88914.0,88913.0,0.45513898]
[1765734969411,0.0002,88914.0,88913.0,0.47289898]
[1765734969814,0.0002,88914.0,88913.0,0.51080898]
[1765734970238,0.0002,88914.0,88913.0,0.50980898]
[1765734970394,0.0002,88914.0,88913.0,0.50880898]
[1765734974630,0.0002,88914.0,88913.0,0.56501398]
[1765734974851,0.0002,88914.0,88913.0,0.50880898]
[1765734976055,0.0002,88914.0,88913.0,0.36544898]
[1765734977374,0.0002,88914.0,88913.0,0.22593898]
[1765734977577,0.0002,88914.0,88913.0,0.24369898]
[1765734978146,0.0002,88914.0,88913.0,0.24269898]
[1765734979882,0.0002,88914.0,88913.0,0.25091259]
[1765734982171,0.04183,88914.0,88913.0,0.25091259]
[1765734982383,0.04183,88914.0,88906.0,0.01124783]
[1765734982384,0.0112472,88911.0,88906.0,0.01124783]
[1765734982530,0.0112472,88911.0,88900.0,0.39050724]
[1765734982531,0.02559,88906.0,88900.0,0.40175583]
[1765734982746,0.02559,88906.0,88900.0,0.03376862]
[1765734982747,0.02743287,88901.0,88900.0,0.03376862]
[1765734982898,0.02743287,88901.0,88894.0,0.01124935]
[1765734983267,0.00161287,88901.0,88900.0,0.00806]
[1765734983412,0.00161287,88901.0,88900.0,0.2907]
[1765734985352,0.00261287,88901.0,88900.0,0.2907]
[1765734986156,0.00161287,88901.0,88900.0,0.2907]
[1765734986695,0.00261287,88901.0,88900.0,0.2907]
[1765734987928,0.00361287,88901.0,88900.0,0.2907]
[1765734988546,0.01929287,88901.0,88899.0,0.2249736]
[1765734988781,0.01568,88900.0,88899.0,0.2249736]
[1765734988986,0.0112491,88896.0,88895.0,0.02017758]
[1765734989262,0.0360891,88896.0,88895.0,0.03793758]
[1765734989434,0.04947,88896.0,88895.0,0.03793758]
[1765734989639,0.04947,88896.0,88876.0,0.01125163]
[1765734989640,0.01125099,88881.0,88876.0,0.01125163]
[1765734989838,0.22502756,88878.0,88877.0,0.01776]
[1765734990367,0.22502756,88878.0,88862.0,0.0112534]
[1765734990368,0.01125277,88867.0,88866.0,0.01776]
[1765734990519,0.01125264,88868.0,88866.0,0.01776]
[1765734990729,0.23630345,88869.0,88866.0,0.01776]
[1765734990730,0.04939,88867.0,88866.0,0.01776]
[1765734991861,0.04939,88867.0,88860.0,0.22507241]
[1765734991863,0.22507061,88861.0,88855.0,0.01125429]
[1765734992173,0.22507061,88861.0,88851.0,0.23635052]
[1765734992174,0.13708,88854.0,88851.0,0.01125479]
[1765734992377,0.02468,88854.0,88852.0,0.22509262]
[1765734992611,0.04931,88854.0,88852.0,0.22509262]
[1765734993157,0.04931,88854.0,88851.0,0.01125479]
[1765734993396,0.04931,88854.0,88850.0,0.01776]
[1765734993574,0.04931,88854.0,88851.0,0.01125479]
[1765734993833,0.04931,88854.0,88850.0,0.01776]
[1765734994213,0.16171,88854.0,88851.0,0.22509502]
[1765734994394,0.16271,88854.0,88851.0,0.22509502]
[1765734994601,0.01,88854.0,88851.0,0.23634981]
[1765734994806,0.012,88854.0,88851.0,0.23634981]
[1765734995355,0.003,88854.0,88851.0,0.23634981]
[1765734995641,0.001,88854.0,88851.0,0.23634981]
[1765734996004,0.002,88854.0,88851.0,0.23634981]
[1765734996521,0.001,88854.0,88851.0,0.23634981]
[1765734996723,0.002,88854.0,88851.0,0.23634981]
[1765734997515,0.002,88854.0,88853.0,0.22721367]
[1765735001585,0.22501782,88882.0,88870.0,0.2362982]
[1765735001914,0.22501782,88882.0,88874.0,0.01125188]
[1765735001915,0.1124,88877.0,88874.0,0.01125188]
[1765735002115,0.11401287,88877.0,88875.0,0.22503516]
[1765735002287,0.00161287,88877.0,88875.0,0.22503516]
[1765735002485,0.01568,88876.0,88875.0,0.22503516]
[1765735002684,0.00161287,88877.0,88875.0,0.22503516]
[1765735003089,0.00461287,88877.0,88875.0,0.22503516]
[1765735004258,0.00161287,88877.0,88875.0,0.22503516]
[1765735004600,0.002,88876.0,88875.0,0.22503516]
[1765735004800,0.00161287,88877.0,88875.0,0.22503516]
[1765735018759,0.02646287,88877.0,88875.0,0.22503516]
[1765735019162,0.0156,88876.0,88875.0,0.22503516]
[1765735019384,0.00161287,88877.0,88875.0,0.22503516]
[1765735019728,0.01,88878.0,88877.0,0.22503009]
[1765735019930,0.03485,88884.0,88883.0,0.2250149]
[1765735020131,0.01,88884.0,88883.0,0.2250149]
[1765735020335,0.0256,88884.0,88883.0,0.2250149]
[1765735020539,0.02721287,88884.0,88883.0,0.2250149]
[1765735020743,0.05206287,88884.0,88883.0,0.2250149]
[1765735021168,0.05206287,88884.0,88882.0,0.22501532]
[1765735021376,0.02485,88883.0,88882.0,0.22501532]
[1765735021603,0.02485,88883.0,88874.0,0.01125188]
[1765735021604,0.22505787,88867.0,88865.0,0.03378034]
[1765735021803,0.01125264,88868.0,88830.0,0.00199998]
[1765735021804,0.1124,88854.0,88846.0,0.01125543]
[1765735022012,0.1124,88854.0,88851.0,0.01776]
[1765735022013,0.13915287,88854.0,88851.0,0.01776]
[1765735022212,0.16400287,88854.0,88851.0,0.02901479]
[1765735022411,0.16400287,88854.0,88851.0,0.25411064]
[1765735022612,0.00954,88854.0,88853.0,0.22759986]
[1765735022825,0.00954,88862.0,88858.0,0.01125391]
[1765735023027,0.00954,88862.0,88861.0,0.01125353]
[1765735025275,0.01254,88862.0,88861.0,0.01125353]
[1765735034252,0.02814,88862.0,88861.0,0.01125353]
[1765735035556,0.003,88862.0,88861.0,0.01125353]
[1765735035755,0.04345,88862.0,88855.0,0.23633971]
[1765735035933,0.01125378,88859.0,88856.0,0.01125416]
[1765735036116,0.01125416,88856.0,88851.0,0.01776]
[1765735036325,0.0156,88854.0,88851.0,0.24285414]
[1765735036545,0.0156,88854.0,88851.0,0.01776]
[1765735036748,0.04045,88854.0,88851.0,0.01776]
[1765735036949,0.04045,88854.0,88851.0,0.24285413]
[1765735037175,0.04045,88854.0,88852.0,0.22509112]
[1765735038151,0.04045,88854.0,88851.0,0.02901479]
[1765735039199,0.04045,88854.0,88853.0,0.22759986]
[1765735040069,0.04045,88854.0,88853.0,0.00250898]
[1765735043313,0.04045,88854.0,88853.0,0.22759986]
[1765735044300,0.04045,88854.0,88853.0,0.00250898]
[1765735044966,0.15285,88854.0,88853.0,0.00250898]
[1765735046300,0.15485,88854.0,88853.0,0.00250898]
[1765735046794,0.15585,88854.0,88853.0,0.00250898]
[1765735050467,0.0186,88854.0,88853.0,0.00250898]
[1765735050818,0.04313,88854.0,88853.0,0.00250898]
[1765735051034,0.0186,88854.0,88853.0,0.00250898]
[1765735051203,0.04313,88854.0,88853.0,0.00250898]
[1765735052381,0.003,88854.0,88853.0,0.00250898]
[1765735052591,0.01933,88854.0,88853.0,0.00250898]
[1765735052795,0.04386,88854.0,88853.0,0.00250898]
[1765735055653,0.003,88854.0,88853.0,0.22759986]
[1765735059543,0.04386,88854.0,88853.0,0.00250898]
[1765735059749,0.003,88854.0,88853.0,0.00250898]
[1765735060927,0.002,88854.0,88853.0,0.00250898]
[1765735061240,0.04286,88854.0,88853.0,0.00250898]
[1765735061459,0.04086,88854.0,88853.0,0.00250898]
[1765735064171,0.26594834,88854.0,88853.0,0.00250898]
[1765735064394,0.04086,88854.0,88853.0,0.00250898]
[1765735069052,0.0504,88854.0,88853.0,0.00250898]
[1765735076280,0.1628,88854.0,88853.0,0.00250898]
[1765735077378,0.1648,88854.0,88853.0,0.00250898]
[1765735079034,0.1658,88854.0,88853.0,0.00250898]
[1765735082136,0.0534,88854.0,88853.0,0.00250898]
[1765735082315,0.1658,88854.0,88853.0,0.00250898]
[1765735093575,0.0534,88854.0,88853.0,0.00250898]
[1765735093791,0.1658,88854.0,88853.0,0.00250898]
[1765735096858,0.0534,88854.0,88853.0,0.00250898]
[1765735101711,0.0534,88854.0,88853.0,0.22759986]
[1765735102658,0.02887,88854.0,88853.0,0.22759986]
[1765735103196,0.05193,88854.0,88853.0,0.22759986]
[1765735104903,0.01254,88854.0,88853.0,0.22759986]
[1765735105132,0.003,88854.0,88853.0,0.22759986]
[1765735105736,0.05226,88854.0,88853.0,0.00250898]
[1765735106031,0.16466,88854.0,88853.0,0.00250898]
[1765735108250,0.16336783,88854.0,88853.0,0.00250898]
[1765735108637,0.38845617,88854.0,88853.0,0.00250898]
[1765735115427,0.27605617,88854.0,88853.0,0.00250898]
[1765735116228,0.38845617,88854.0,88853.0,0.00250898]
[1765735121161,0.16336783,88854.0,88853.0,0.00250898]
[1765735121912,0.05096783,88854.0,88853.0,0.00250898]
[1765735122111,0.16336783,88854.0,88853.0,0.00250898]
[1765735122611,0.16410783,88854.0,88853.0,0.00250898]
[1765735123429,0.02790783,88854.0,88853.0,0.22759986]
[1765735123630,0.02790783,88854.0,88853.0,0.00250898]
[1765735123834,0.01124783,88854.0,88853.0,0.00250898]
[1765735125173,0.05076783,88854.0,88853.0,0.00250898]
[1765735127014,0.02696783,88854.0,88853.0,0.00250898]
[1765735128549,0.05076783,88854.0,88853.0,0.00250898]
[1765735137046,0.01124783,88854.0,88853.0,0.00250898]
[1765735137452,0.02667783,88854.0,88853.0,0.00250898]
[1765735137860,0.05157783,88854.0,88853.0,0.00250898]
[1765735138165,0.05131261,88854.0,88853.0,0.00250898]
[1765735142106,0.16371261,88854.0,88853.0,0.00250898]
[1765735144064,0.19750664,88854.0,88853.0,0.00250898]
[1765735144697,0.19706403,88854.0,88853.0,0.00250898]
[1765735144903,0.56608687,88854.0,88853.0,0.00139124]
[1765735145111,0.63370815,88854.0,88853.0,0.00139124]
[1765735145309,0.59338239,88854.0,88853.0,0.00139124]
[1765735145546,0.59238239,88854.0,88853.0,0.00139124]
[1765735145759,0.59538239,88854.0,88853.0,0.00139124]
[1765735146264,0.59238239,88854.0,88853.0,0.00139124]
[1765735146905,0.59438239,88854.0,88853.0,0.00139124]
[1765735147238,0.59238239,88854.0,88853.0,0.00139124]
[1765735147443,0.62270471,88854.0,88853.0,0.00139124]
[1765735147646,0.62770471,88854.0,88853.0,0.00139124]
[1765735147850,0.62768909,88854.0,88853.0,0.00139124]
[1765735148051,0.59736677,88854.0,88853.0,0.00139124]
[1765735150101,0.51905955,88854.0,88853.0,0.00139124]
[1765735150297,0.20406403,88854.0,88853.0,0.00139124]
[1765735151217,0.19906403,88854.0,88853.0,0.00139124]
[1765735151425,0.20306403,88854.0,88853.0,0.00139124]
[1765735151627,0.20006403,88854.0,88853.0,0.00139124]
[1765735151962,0.20406403,88854.0,88853.0,0.00139124]
[1765735154669,0.60750291,88854.0,88853.0,0.00139124]
[1765735154800,0.79416044,88854.0,88853.0,0.00139124]
[1765735155030,0.69948746,88854.0,88853.0,0.00139124]
[1765735155640,0.71000801,88854.0,88853.0,0.00139124]
[1765735156277,0.72694181,88854.0,88853.0,0.00139124]
[1765735156470,0.71642142,88854.0,88853.0,0.00139124]
[1765735158502,0.75721957,88854.0,88853.0,0.00139124]
[1765735159957,0.72693867,88854.0,88853.0,0.00139124]
[1765735160809,0.72691979,88854.0,88853.0,0.00139124]
[1765735166360,0.75719511,88854.0,88853.0,0.00139124]
[1765735168422,0.72691979,88854.0,88853.0,0.00139124]
[1765735168624,0.75721303,88854.0,88853.0,0.00139124]
[1765735171307,0.74669578,88854.0,88853.0,0.00139124]
[1765735171522,0.72692729,88854.0,88853.0,0.00139124]
[1765735173686,0.72686329,88854.0,88853.0,0.00139124]
[1765735177335,0.52944504,88854.0,88853.0,0.00139124]
[1765735177543,0.49565101,88854.0,88853.0,0.00139124]
[1765735177747,0.48268947,88854.0,88853.0,0.00139124]
[1765735179899,0.48269782,88854.0,88853.0,0.00139124]
[1765735180102,0.47216472,88854.0,88853.0,0.00139124]
[1765735182212,0.4827025,88854.0,88853.0,0.00139124]
[1765735183438,0.5954084,88854.0,88853.0,0.00139124]
[1765735183645,0.61962866,88854.0,88853.0,0.00139124]
[1765735201494,0.50692276,88854.0,88853.0,0.00139124]
[1765735201727,0.460906,88854.0,88853.0,0.00139124]
[1765735202404,0.5736119,88854.0,88853.0,0.00139124]
[1765735202597,0.59783216,88854.0,88853.0,0.00139124]
[1765735205313,0.60837769,88854.0,88853.0,0.00139124]
[1765735205538,0.7689037,88854.0,88853.0,0.00139124]
[1765735205764,0.7689037,88854.0,88799.0,0.01235]
[1765735205765,0.65839608,88854.0,88806.0,0.01776]
[1765735205967,0.36233704,88819.0,88806.0,0.01776]
[1765735206180,0.36233704,88819.0,88809.0,0.01126012]
[1765735206382,0.38549704,88819.0,88809.0,0.01126012]
[1765735206717,0.38549704,88819.0,88806.0,0.01776]
[1765735206891,0.38549704,88819.0,88808.0,0.01126024]
[1765735207124,0.38549704,88819.0,88807.0,0.01126037]
[1765735207296,0.38549704,88819.0,88808.0,0.01126024]
[1765735207297,0.38649704,88819.0,88808.0,0.01126024]
[1765735207540,0.38649704,88819.0,88806.0,0.0290205]
[1765735207714,0.38649704,88819.0,88806.0,0.01776]
[1765735208116,0.38649704,88819.0,88818.0,0.0034]
[1765735208564,0.38649704,88819.0,88818.0,0.0004]
[1765735211584,0.38649704,88819.0,88818.0,0.00147024]
[1765735212961,0.38810991,88819.0,88818.0,0.00147024]
[1765735227426,0.40586991,88819.0,88818.0,0.00147024]
[1765735232455,0.69656991,88819.0,88818.0,0.00147024]
[1765735232952,0.69556991,88819.0,88818.0,0.00147024]
[1765735233343,0.69856991,88819.0,88818.0,0.00147024]
[1765735233541,0.75912199,88819.0,88818.0,0.00147024]
[1765735233789,0.81069594,88819.0,88818.0,0.00147024]
[1765735233995,0.780385,88819.0,88818.0,0.00147024]
[1765735234225,0.81469594,88819.0,88818.0,0.00147024]
[1765735235025,0.784385,88819.0,88818.0,0.00147024]
[1765735235569,0.81369594,88819.0,88818.0,0.00147024]
[1765735235917,0.81469594,88819.0,88818.0,0.00147024]
[1765735236130,0.787385,88819.0,88818.0,0.00147024]
[1765735236516,0.81769594,88819.0,88818.0,0.00147024]
[1765735236778,0.787385,88819.0,88818.0,0.00147024]
[1765735237936,0.674985,88819.0,88818.0,0.00147024]
[1765735238137,0.7308636,88819.0,88818.0,0.00147024]
[1765735238401,0.74459292,88819.0,88818.0,0.00147024]
[1765735238821,0.63219292,88819.0,88818.0,0.00147024]
[1765735238950,0.73086293,88819.0,88818.0,0.00147024]
[1765735239153,0.74459292,88819.0,88818.0,0.00147024]
[1765735239373,0.74059292,88819.0,88818.0,0.00147024]
[1765735239576,0.74159292,88819.0,88818.0,0.00147024]
[1765735239781,0.74459292,88819.0,88818.0,0.00147024]
[1765735240602,0.72683292,88819.0,88818.0,0.00147024]
[1765735240795,0.74459292,88819.0,88818.0,0.00147024]
[1765735242615,0.75512285,88819.0,88818.0,0.00147024]
[1765735243553,0.80514124,88819.0,88818.0,0.00147024]
[1765735243867,1.08335218,88819.0,88818.0,0.00147024]
[1765735244102,1.08335218,88819.0,88799.0,0.0004]
[1765735244103,0.62832522,88800.0,88799.0,0.0004]
[1765735244293,0.66705522,88800.0,88799.0,0.0004]
[1765735244660,0.68481522,88800.0,88799.0,0.0004]
[1765735245441,0.68581522,88800.0,88799.0,0.0004]
[1765735245847,0.68481522,88800.0,88799.0,0.0004]
[1765735246083,0.68781522,88800.0,88799.0,0.0004]
[1765735249847,0.68781522,88800.0,88799.0,0.00098121]
[1765735250911,0.26695522,88800.0,88799.0,0.00098121]
[1765735251332,0.04173,88800.0,88799.0,0.00098121]
[1765735251563,0.15413,88800.0,88799.0,0.00098121]
[1765735253938,0.04173,88800.0,88799.0,0.00098121]
[1765735254203,0.18794605,88800.0,88799.0,0.00098121]
[1765735255225,0.47864605,88800.0,88799.0,0.00098121]
[1765735257488,0.57066077,88800.0,88799.0,0.00098121]
[1765735257692,0.54376284,88800.0,88799.0,0.00098121]
[1765735258085,0.5634592,88800.0,88799.0,0.00098121]
[1765735258290,0.55192677,88800.0,88799.0,0.00098121]
[1765735258486,0.67895841,88800.0,88799.0,1.21e-06]
[1765735258895,0.68595841,88800.0,88799.0,1.21e-06]
[1765735259477,0.93385841,88800.0,88799.0,1.21e-06]
[1765735259684,0.69482629,88795.0,88794.0,1.21e-06]
[1765735259919,0.74579782,88795.0,88794.0,1.21e-06]
[1765735260171,0.76910782,88795.0,88794.0,1.21e-06]
[1765735260294,0.75293026,88795.0,88794.0,1.21e-06]
[1765735260890,0.79637569,88795.0,88794.0,1.21e-06]
[1765735261127,0.79837569,88795.0,88794.0,1.21e-06]
[1765735261339,0.75793026,88795.0,88794.0,1.21e-06]
[1765735261540,0.79836603,88795.0,88794.0,1.21e-06]
[1765735261741,0.75793026,88795.0,88794.0,1.21e-06]
[1765735261946,0.79836603,88795.0,88794.0,1.21e-06]
[1765735262347,1.21350184,88795.0,88794.0,1.21e-06]
[1765735262494,1.17306607,88795.0,88794.0,1.21e-06]
[1765735263521,1.00583026,88795.0,88794.0,1.21e-06]
[1765735263759,1.04624737,88795.0,88794.0,1.21e-06]
[1765735263927,1.00583026,88795.0,88794.0,1.21e-06]
[1765735264128,1.02363026,88795.0,88794.0,1.21e-06]
[1765735264537,0.95581187,88795.0,88794.0,1.21e-06]
[1765735264898,0.66511187,88795.0,88794.0,1.21e-06]